Cogmind - Beta 12 @@@ ROGUE MODE // 2023.03.25 @ 22:38:25 Player: arcadio rl Result: Destroyed by G-47 Trooper with Particle Gun Performance ------------- Evolutions (2) 1000 Regions Visited (9) 1800 Robots Destroyed (141) 705 Value Destroyed (5190) 5190 Prototype IDs (12) 240 Alien Tech Used (0) 0 Bonus (797) 797 TOTAL SCORE: 9732 Bonus ------- High Alert Combat Kills 464 Follower Combat Kills 133 Entered Garrisons 200 Cogmind --------- Core Integrity 0/550 Matter 49/300 Energy 99/100 System Corruption 0% Temperature Warning (318) Movement Treading (145) Location -8/Materials Parts ------- > --- POWER (1) -------- (None) > --- PROPULSION (3) --- Advanced Treads Advanced Treads > --- UTILITY (5) ------ Large Storage Unit Targeting Computer Targeting Computer Improved Targeting Computer Core Analyzer > --- WEAPON (2) ------- Advanced Assault Cannon Advanced Assault Cannon > --- INVENTORY (15) --- Improved Deuterium Engine Huge Storage Unit Compact Matter Pod (150) Advanced Visual Processing Unit Improved Signal Interpreter Targeting Computer Armor Integrity Analyzer Relay Coupler [Swarmer] System Restoration Module Advanced Assault Cannon Advanced Assault Cannon Rocket Launcher Rocket Launcher Peak State ------------ > --- POWER ------------ Improved Deuterium Engine > --- PROPULSION ------- Armored Treads Armored Treads Advanced Treads > --- UTILITY ---------- Large Storage Unit Targeting Computer Targeting Computer Targeting Computer Improved Targeting Computer > --- WEAPON ----------- Advanced Assault Cannon Advanced Assault Cannon > --- INVENTORY -------- Improved Deuterium Engine Improved Deuterium Engine Light Treads Light Treads Advanced Treads Cooling System Huge Storage Unit Compact Matter Pod Improved Signal Interpreter System Restoration Module Heavy Ion Cannon Advanced Assault Cannon Rocket Launcher Rocket Launcher Improved Datajack [Rating: 31] Favorites ----------- Power Cooled Ion Engine Engine Cooled Ion Engine Power Core Light Nuclear Core Propulsion Light Treads Treads Light Treads Wheel Compact Wheel Utility Targeting Computer Device Sensor Array Storage Large Storage Unit Processor Targeting Computer Protection Hardened Light Armor Plating Weapon Improved Assault Rifle Energy Gun Particle Gun Energy Cannon Heavy Ion Cannon Ballistic Gun Improved Assault Rifle Ballistic Cannon Advanced Assault Cannon Launcher Grenade Launcher Build | -11 -10 -10 -9 -9 -9 -8 -8 -8 -8 ------- Run | Jun Mat Min Mat Min Exi Min Mat Gar Mat Slots Evolved 4 | . . . 2 . . . 2 . . Power . | . . . . . . . . . . Propulsion 1 | . . . . . . . 1 . . Utility 3 | . . . 2 . . . 1 . . Weapon . | . . . . . . . . . . Parts Attached 89 | 6 9 3 26 3 1 2 23 8 8 Power 11 | 1 2 1 5 . . . 1 1 . Engine 9 | 1 2 . 4 . . . 1 1 . Core 2 | . . 1 1 . . . . . . Reactor . | . . . . . . . . . . Propulsion 31 | 2 2 2 10 . . . 11 1 3 Treads 27 | . 2 . 10 . . . 11 1 3 Leg . | . . . . . . . . . . Wheel 4 | 2 . 2 . . . . . . . Hover . | . . . . . . . . . . Flight . | . . . . . . . . . . Utility 20 | 1 3 . 6 3 1 . 5 . 1 Device 5 | . 1 . 2 1 . . 1 . . Storage 4 | 1 1 . 1 . 1 . . . . Processor 5 | . . . 1 1 . . 2 . 1 Hackware . | . . . . . . . . . . Protection 6 | . 1 . 2 1 . . 2 . . Artifact . | . . . . . . . . . . Weapon 27 | 2 2 . 5 . . 2 6 6 4 Energy Gun 2 | . 2 . . . . . . . . Energy Cannon 2 | . . . . . . . . 2 . Ballistic Gun 10 | 2 . . 5 . . 1 . 1 1 Ballistic Cannon 8 | . . . . . . . 5 1 2 Launcher 5 | . . . . . . 1 1 2 1 Special Weapon . | . . . . . . . . . . Impact Weapon . | . . . . . . . . . . Slashing Weapon . | . . . . . . . . . . Piercing Weapon . | . . . . . . . . . . Special Melee Weapon . | . . . . . . . . . . Unidentified Prototypes . | . . . . . . . . . . Parts Lost 14 | . 1 . 4 . . . 1 3 5 Power 3 | . . . 2 . . . . . 1 Propulsion 8 | . 1 . 2 . . . 1 1 3 Utility 1 | . . . . . . . . . 1 Weapon 2 | . . . . . . . . 2 . Highest Loss Streak 4 | . 1 . 2 . . . 1 3 4 To Critical Strikes . | . . . . . . . . . . Average Slot Usage (%) 99 | . 99 100 98 100 100 100 99 99 99 Engine 9 | . 14 7 9 11 11 11 9 9 8 Treads 23 | . 23 16 19 22 22 22 26 26 26 Wheel 1 | . 4 11 1 . . . . . . Device 5 | . 10 14 15 6 . . . . . Storage 10 | . 14 14 11 11 11 11 9 9 9 Processor 21 | . . . 11 18 22 22 34 36 36 Protection 3 | . 3 . 6 9 11 11 1 . . Energy Gun 4 | . 21 28 . . . . . . . Ballistic Gun 8 | . 6 . 20 22 22 21 2 . . Ballistic Cannon 7 | . . . . . . . 15 16 16 Naked Turns . | . . . . . . . . . . Heaviest Build 42 | 12 32 32 40 40 39 39 42 42 42 Greatest Support 64 | 26 40 40 49 43 43 43 63 62 64 Greatest Overweight (x) 10 | . . 10 1 . . . . . . Average Overweight (x) . | . . . . . . . . . . Largest Inventory Capacity 15 | 8 15 15 15 15 15 15 15 15 15 Average Capacity 14 | 6 12 15 15 15 15 15 15 15 15 Most Carried 15 | 6 13 15 15 15 15 15 15 15 15 Average Carried 14 | 2 8 14 14 15 15 14 14 14 14 Final Capacity 15 | 8 15 15 15 15 15 15 15 15 15 Final Carried 15 | 6 13 15 15 15 15 15 15 14 13 Class Distribution -------------------- 97% | Mutant Dominant Class ---------------- Mutant | -10/Materials Mutant | -10/Mines Mutant | -9/Materials Mutant | -9/Mines Mutant | -9/Exiles Mutant | -8/Mines Mutant | -8/Materials Mutant | -8/Garrison Mutant | -8/Materials Resources | -11 -10 -10 -9 -9 -9 -8 -8 -8 -8 ----------- Run | Jun Mat Min Mat Min Exi Min Mat Gar Mat Matter Collected 3740 | 242 151 30 822 66 . 95 1142 864 328 Remotely . | . . . . . . . . . . Salvage Created 4358 | . 465 174 1410 85 . 170 975 719 360 Parts 275 | . 31 8 91 7 . 5 62 52 19 Haulers Intercepted 14 | . 1 . 5 . . . 5 . 3 Recyclers Shooed 1 | . . 1 . . . . . . . Parts Field Recycled . | . . . . . . . . . . Retrieved Matter . | . . . . . . . . . . Parts Self-Destructed . | . . . . . . . . . . Prevented . | . . . . . . . . . . Kills | -11 -10 -10 -9 -9 -9 -8 -8 -8 -8 ------- Run | Jun Mat Min Mat Min Exi Min Mat Gar Mat Combat Hostiles Destroyed 111 | . 12 3 25 2 . 3 31 25 10 Guns 48 | . 12 3 25 2 . 1 5 . . Cannons 44 | . . . . . . . 18 16 10 AOE 19 | . . . . . . 2 8 9 . Classes Destroyed 13 | . 5 2 3 1 . . 1 1 . Worker 1 | . . . 1 . . . . . . Builder 1 | . 1 . . . . . . . . Hauler 14 | . 1 . 5 . . . 5 . 3 Recycler 2 | . . 1 . . . 1 . . . Watcher 12 | . 1 . 5 . . . 5 . 1 Swarmer 21 | . 3 . 4 . . . 10 4 . Grunt 50 | . 9 2 11 1 . 3 10 5 9 Brawler 3 | . . . 2 . . . 1 . . Duelist 3 | . . . . 1 . . . 2 . Sentry 25 | . . . 8 . . . 9 7 1 Demolisher 1 | . . 1 . . . . . . . Specialist 5 | . . . . . . . . 5 . Hunter 3 | . . . . . . . 1 2 . Best Kill Streak 9 | . 3 2 7 1 . 4 9 6 4 Combat Bots Only 8 | . 3 2 6 1 . 3 8 6 2 Max Kills in Single Turn 4 | . 2 1 1 1 . 1 4 4 1 Gunslinging . | . . . . . . . . . . Exploded 4 | . . . . . . 1 4 3 . Melee . | . . . . . . . . . . Uniques/NPCs Destroyed . | . . . . . . . . . . Combat | -11 -10 -10 -9 -9 -9 -8 -8 -8 -8 -------- Run | Jun Mat Min Mat Min Exi Min Mat Gar Mat Damage Taken 5887 | . 490 135 1497 155 . 155 1120 1443 892 Core 937 | . 35 16 261 36 . 37 169 311 72 Absorbed by Shields . | . . . . . . . . . . Regen/Repaired (Parts) 546 | . . . 546 . . . . . . Core Remaining (%) 65 | 100 . 79 . . . 16 . . . Volleys Fired 342 | . 46 8 96 6 . 5 90 49 42 Largest 2 | . 2 2 2 2 . 2 2 2 2 Hottest 130 | . 130 130 130 46 . 53 96 96 96 Shots Fired 678 | . 92 16 192 12 . 10 179 93 84 Gun 343 | . 92 16 192 12 . 5 26 . . Cannon 320 | . . . . . . . 147 89 84 Launcher 15 | . . . . . . 5 6 4 . Special . | . . . . . . . . . . Kinetic 597 | . 48 . 188 12 . 5 173 87 84 Thermal 66 | . 44 16 4 . . . . 2 . Explosive 15 | . . . . . . 5 6 4 . Electromagnetic . | . . . . . . . . . . Robot Hit Streak 52 | . 8 11 24 23 . 5 20 35 52 Robot Miss Streak 6 | . 3 1 3 1 . 1 6 2 1 Penetration Max . | . . . . . . . . . . Secondary Targets 8 | . 2 1 5 . . . . . . Max Gunslinging Chain 1 | . 1 1 1 . . . . . . Shots Hit Robots 508 | . 62 13 153 10 . 7 137 61 65 Core Hits 240 | . 24 6 57 3 . 8 87 35 20 Critical Kills 1 | . . . 1 . . . . . . Critical Parts Destroyed . | . . . . . . . . . . Critical Strikes 15 | . 2 1 1 . . . 3 3 5 Burn 3 | . 2 1 . . . . . . . Destroy 1 | . . . 1 . . . . . . Blast 11 | . . . . . . . 3 3 5 Melee Attacks . | . . . . . . . . . . Impact . | . . . . . . . . . . Slashing . | . . . . . . . . . . Piercing . | . . . . . . . . . . Sneak Attacks . | . . . . . . . . . . Combat Hostiles . | . . . . . . . . . . Follow-up Attacks . | . . . . . . . . . . Damage Inflicted 11374 | . 762 208 2395 173 . 352 3365 2192 1927 Guns 3899 | . 762 208 2392 173 . 50 314 . . Cannons 5862 | . . . . . . . 2406 1529 1927 Explosions 1610 | . . . . . . 302 645 663 . Melee . | . . . . . . . . . . Ramming 3 | . . . 3 . . . . . . Kinetic 9015 | . 298 . 2347 173 . 50 2720 1500 1927 Thermal 746 | . 464 208 45 . . . . 29 . Explosive 1610 | . . . . . . 302 645 663 . Electromagnetic . | . . . . . . . . . . Impact . | . . . . . . . . . . Slashing . | . . . . . . . . . . Piercing . | . . . . . . . . . . Highest Corruption 1 | . . . 1 1 . . . . . Average Corruption 1 | . . . 1 1 . . . . . Corruption Purged 1 | . . . . 1 . . . . . Corruption Blocked . | . . . . . . . . . . Effects 16 | . . . 15 1 . . . . . Message Errors 2 | . . . 2 . . . . . . Matter Fused 3 | . . . 3 . . . . . . Heat Flow Errors 1 | . . . 1 . . . . . . Energy Discharges 2 | . . . 1 1 . . . . . Data Loss (minor) 4 | . . . 4 . . . . . . Data Loss (major) 2 | . . . 2 . . . . . . Misfires 1 | . . . 1 . . . . . . Weapon Failures 1 | . . . 1 . . . . . . Overload Shots . | . . . . . . . . . . Overflow Damage 104 | . . . . . . . 61 10 33 Projectiles 51 | . . . . . . . 18 . 33 Explosions 53 | . . . . . . . 43 10 . Melee . | . . . . . . . . . . Knockbacks 78 | . . . . . . . 43 13 22 Impact . | . . . . . . . . . . Kinetic 70 | . . . . . . . 37 13 20 Secondary 8 | . . . . . . . 6 . 2 Self-Inflicted Damage 68 | . . . . . . . 6 62 . Shots 3 | . . . . . . . 1 2 . Rammed 1 | . . . 1 . . . . . . Targets Rammed 1 | . . . 1 . . . . . . Kicked . | . . . . . . . . . . Crushed . | . . . . . . . . . . Highest Temperature 406 | . 339 234 142 . . 27 150 406 329 Average Temperature 63 | . 80 91 41 . . 16 36 79 84 Received Heat Transfer 2505 | . 246 66 612 15 . 81 513 450 522 Effects 2 | . . . . . . . . 2 . Shutdowns 1 | . . . . . . . . 1 . Interference 1 | . . . . . . . . 1 . Siege Activations . | . . . . . . . . . . Robots Corrupted . | . . . . . . . . . . Combat Hostiles . | . . . . . . . . . . Parts Fried . | . . . . . . . . . . Impact Corruptions . | . . . . . . . . . . Robots Melted . | . . . . . . . . . . Combat Hostiles . | . . . . . . . . . . Parts Melted 6 | . 4 1 1 . . . . . . Heat Transferred 1924 | . 1221 555 111 . . . . 37 . Parts Sabotaged . | . . . . . . . . . . Parts Stolen . | . . . . . . . . . . Parts Stripped . | . . . . . . . . . . Power Chain Reactions . | . . . . . . . . . . Missiles Intercepted . | . . . . . . . . . . Alert | -11 -10 -10 -9 -9 -9 -8 -8 -8 -8 ------- Run | Jun Mat Min Mat Min Exi Min Mat Gar Mat Peak Influence 1064 | . 173 66 402 197 . 106 287 1064 841 Initial 518 | . . 66 21 132 . . . 93 518 Average 226 | . 88 50 256 130 . 37 106 574 714 Maximum Alert Level 3 | . . . 2 . . . 1 3 3 Low Security (%) 65 | 100 100 100 33 100 . 100 91 13 . Level 1 16 | . . . 63 . . . 8 7 . Level 2 10 | . . . 3 . . . . 57 33 Level 3 6 | . . . . . . . . 22 66 Level 4 . | . . . . . . . . . . Level 5 . | . . . . . . . . . . High Security . | . . . . . . . . . . Max Security . | . . . . . . . . . . Squads Dispatched 12 | . 1 . 4 1 . . 3 . 3 Investigation 3 | . . . 1 1 . . 1 . . Extermination . | . . . . . . . . . . Reinforcement 7 | . 1 . 3 . . . 2 . 1 Assault 1 | . . . . . . . . . 1 Garrison 1 | . . . . . . . . . 1 Intercept . | . . . . . . . . . . Searches Triggered . | . . . . . . . . . . Construction Impeded 1 | . . . . . . . . . 1 Haulers Reinforced . | . . . . . . . . . . Active Scanning Responses . | . . . . . . . . . . Cargo Convoy Interrupts . | . . . . . . . . . . Stealth | -11 -10 -10 -9 -9 -9 -8 -8 -8 -8 --------- Run | Jun Mat Min Mat Min Exi Min Mat Gar Mat Distress Signals 7 | . 1 . 2 . . . 2 . 2 Communications Jammed . | . . . . . . . . . . Distress Signals . | . . . . . . . . . . Times Spotted 163 | . 24 4 41 4 . 3 41 26 20 Peak Tracking Total 9 | . 4 2 6 3 . 3 9 6 5 Tactical Retreats 2 | . 1 . . 1 . . . . . Traps | -11 -10 -10 -9 -9 -9 -8 -8 -8 -8 ------- Run | Jun Mat Min Mat Min Exi Min Mat Gar Mat Traps Triggered 3 | . . . 2 . . . 1 . . Indirectly . | . . . . . . . . . . Trap Hack Attempts . | . . . . . . . . . . Triggered . | . . . . . . . . . . Disarmed . | . . . . . . . . . . Reprogrammed . | . . . . . . . . . . Reused . | . . . . . . . . . . Traps Extracted . | . . . . . . . . . . Installed . | . . . . . . . . . . Triggered . | . . . . . . . . . . Machines | -11 -10 -10 -9 -9 -9 -8 -8 -8 -8 ---------- Run | Jun Mat Min Mat Min Exi Min Mat Gar Mat Machines Disabled 11 | . . . 1 . . . 2 4 4 Max in Single Turn 1 | . . . 1 . . . 1 1 1 Garrison Access 1 | . . . . . . . . . 1 Garrison Relay 3 | . . . . . . . . 3 . Machines Repaired . | . . . . . . . . . . Machines Sabotaged . | . . . . . . . . . . Overloaded Fab Kills . | . . . . . . . . . . Hacking | -11 -10 -10 -9 -9 -9 -8 -8 -8 -8 --------- Run | Jun Mat Min Mat Min Exi Min Mat Gar Mat Machines Accessed 43 | . 6 . 11 1 1 1 14 4 5 Terminals 31 | . 6 . 7 . . 1 9 4 4 Fabricators . | . . . . . . . . . . Repair Stations 3 | . . . 2 . . . 1 . . Recycling Units 2 | . . . 1 . . . 1 . . Scanalyzers 3 | . . . 1 . . . 2 . . Garrison Access 2 | . . . . . . . 1 . 1 Total Hacks 154 | . 19 . 46 1 23 2 50 5 8 Successful 109 | . 10 . 29 1 23 1 43 1 1 Failed 45 | . 9 . 17 . . 1 7 4 7 Catastrophic 5 | . . . 2 . . . . 2 1 Database Lockouts . | . . . . . . . . . . Manual 53 | . 15 . 17 . . . 19 . 2 Terminals 88 | . 19 . 24 . . 2 31 5 7 Fabricators . | . . . . . . . . . . Repair Stations 14 | . . . 12 . . . 2 . . Recycling Units 7 | . . . 4 . . . 3 . . Scanalyzers 19 | . . . 6 . . . 13 . . Garrison Access 2 | . . . . . . . 1 . 1 Terminal Hacks 62 | . 7 . 8 1 23 1 21 1 . Record 25 | . . . . . 23 . 2 . . Robot Analysis 6 | . 2 . 2 . . . 2 . . Prototype ID Bank 7 | . 1 . 3 . . . 3 . . Open Door 2 | . . . . 1 . . . 1 . Branch Access Points 1 | . . . . . . . 1 . . Terminal Index 1 | . 1 . . . . . . . . Alert Level 4 | . . . 1 . . . 3 . . Unreport Threat 3 | . . . . . . . 3 . . Locate Traps 3 | . 1 . . . . . 2 . . Dispatch Records 1 | . . . . . . . 1 . . Security Status 1 | . . . . . . . 1 . . Patrol Status 2 | . 1 . . . . . 1 . . Recall Investigation 1 | . . . 1 . . . . . . Hauler Manifests 2 | . 1 . . . . . 1 . . Registered Components 1 | . . . 1 . . . . . . Zone Layout 2 | . . . . . . 1 1 . . Fabricator Hacks . | . . . . . . . . . . Repair Station Hacks 11 | . . . 10 . . . 1 . . Scan Component 6 | . . . 5 . . . 1 . . Repair 5 | . . . 5 . . . . . . Recycling Unit Hacks . | . . . . . . . . . . Scanalyzer 19 | . . . 6 . . . 13 . . Insert Component 9 | . . . 3 . . . 6 . . Analyze 10 | . . . 3 . . . 7 . . Garrison Access Hacks 2 | . . . . . . . 1 . 1 Unlock Access 1 | . . . . . . . 1 . . Seal Access 1 | . . . . . . . . . 1 Unauthorized Hacks 15 | . 3 . 5 . . . 7 . . Terminals 9 | . 3 . 2 . . . 4 . . Assimilate 1 | . . . . . . . 1 . . Botnet 6 | . 2 . 2 . . . 2 . . Operators 2 | . 1 . . . . . 1 . . Fabricators . | . . . . . . . . . . Repair Stations . | . . . . . . . . . . Recycling Units 6 | . . . 3 . . . 3 . . Reject 2 | . . . 1 . . . 1 . . Recyclers 2 | . . . 1 . . . 1 . . Mask 2 | . . . 1 . . . 1 . . Scanalyzers . | . . . . . . . . . . Garrison Access . | . . . . . . . . . . Data Cores Recovered . | . . . . . . . . . . Used . | . . . . . . . . . . Hacking Detections 37 | . 6 . 11 . . 1 12 3 4 Full Trace Events 1 | . . . . . . . . 1 . Feedback Events . | . . . . . . . . . . Feedback Blocked . | . . . . . . . . . . Robot Schematics Acquired . | . . . . . . . . . . Robots Built . | . . . . . . . . . . Authchips . | . . . . . . . . . . Time . | . . . . . . . . . . Total Robot Build Rating . | . . . . . . . . . . Part Schematics Acquired 8 | . . . 3 . . . 5 . . Parts Built . | . . . . . . . . . . Authchips . | . . . . . . . . . . Time . | . . . . . . . . . . Total Part Build Rating . | . . . . . . . . . . Parts Repaired 5 | . . . 5 . . . . . . Time 198 | . . . 198 . . . . . . Parts Recycled . | . . . . . . . . . . Recycled Matter . | . . . . . . . . . . Retrieved Matter . | . . . . . . . . . . Retrieved Components . | . . . . . . . . . . Parts Scanalyzed 9 | . . . 3 . . . 6 . . Part Schematics Acquired 8 | . . . 3 . . . 5 . . Parts Damaged . | . . . . . . . . . . Bothacking | -11 -10 -10 -9 -9 -9 -8 -8 -8 -8 ------------ Run | Jun Mat Min Mat Min Exi Min Mat Gar Mat Used RIF Installer . | . . . . . . . . . . Robots Hacked . | . . . . . . . . . . Non-combat . | . . . . . . . . . . Combat . | . . . . . . . . . . Robot Hacks Applied . | . . . . . . . . . . Relay Couplers Released 11 | . . . . . . . . 11 . Machine Destruction 11 | . . . . . . . . 11 . Fabnet Peak Effective % . | . . . . . . . . . . Robots Rewired 2 | . . . . . . . . 2 . Allies Hacked . | . . . . . . . . . . Hacks Repelled . | . . . . . . . . . . Allies | -11 -10 -10 -9 -9 -9 -8 -8 -8 -8 -------- Run | Jun Mat Min Mat Min Exi Min Mat Gar Mat Total Allies 6 | . . 2 . . . . 1 3 . Largest Group 2 | . . 2 . . . . 1 2 2 Highest-Rated Group 80 | . . 45 . . . . 10 80 80 Highest-Rated Ally 40 | . . 31 . . . . 10 40 40 Total Orders . | . . . . . . . . . . Ally Attacks 21 | . . 1 . . . . . 6 14 Total Damage 516 | . . . . . . . . 103 413 Kills 8 | . . . . . . . . 2 6 Allies Corrupted . | . . . . . . . . . . Allies Melted . | . . . . . . . . . . Intel | -11 -10 -10 -9 -9 -9 -8 -8 -8 -8 ------- Run | Jun Mat Min Mat Min Exi Min Mat Gar Mat Robot Analysis Total 6 | . 2 . 2 . . . 2 . . Derelict Logs Recovered 1 | . . . . 1 . . . . . Drone Launches . | . . . . . . . . . . Drone Recoveries . | . . . . . . . . . . Exploration | -11 -10 -10 -9 -9 -9 -8 -8 -8 -8 ------------- Run | Jun Mat Min Mat Min Exi Min Mat Gar Mat Turns Passed 10269 | 61 1161 779 2060 442 474 656 2719 1375 542 Spaces Moved 5407 | 53 626 570 879 253 296 398 1377 738 217 Core 5 | 4 . 1 . . . . . . . Treads 4836 | . 494 256 807 253 296 398 1377 738 217 Legs . | . . . . . . . . . . Wheels 566 | 49 132 313 72 . . . . . . Hover . | . . . . . . . . . . Flight . | . . . . . . . . . . Fastest Speed 50 | 50 90 100 100 160 160 160 160 161 145 Average Speed 154 | 87 145 127 160 160 160 160 162 161 158 Slowest Speed 550 | 100 160 550 240 160 160 160 166 161 161 Overloaded Moves . | . . . . . . . . . . Propulsion Burnouts . | . . . . . . . . . . Robots Hopped . | . . . . . . . . . . Cave-ins Triggered . | . . . . . . . . . . Exploration Rate (%) 66 | 3 90 98 66 56 74 98 81 72 23 Regions Visited 9 Branch Regions 4 Pre-discovered Areas 2 | . . 1 . . 1 . . . . Known Exits Taken 1 | . . . . . . . 1 . . Unknown Exits Taken 7 | 1 1 1 1 1 1 1 . . . Scrap Searched 4 | . . 1 . 2 . 1 . . . Spaces Dug 6 | . . . . . . . 6 . . Terrain Destroyed 111 | . . . . . . 30 54 18 9 Melee . | . . . . . . . . . . Projectile 29 | . . . . . . . 20 . 9 AOE 82 | . . . . . . 30 34 18 . Terrain Rammed . | . . . . . . . . . . Walls Destroyed . | . . . . . . . . . . Machines Disabled . | . . . . . . . . . . Actions | -11 -10 -10 -9 -9 -9 -8 -8 -8 -8 --------- Run | Jun Mat Min Mat Min Exi Min Mat Gar Mat Total 6644 | 64 796 604 1343 278 297 407 1687 836 332 Wait 667 | . 99 21 295 12 . . 159 26 55 Move 5398 | 52 625 569 878 252 295 397 1376 737 217 Hop . | . . . . . . . . . . Pick Up 60 | 6 10 1 17 2 . 1 13 6 4 Fast Attach 34 | 6 2 2 13 1 . . 7 1 2 Attach 17 | . 2 . 3 . . . 5 4 3 Detach 8 | . 2 . 3 . . . 1 1 1 Swap 38 | . 5 1 10 2 1 2 11 3 3 Drop 74 | . 5 2 27 3 1 1 25 5 5 Fire 342 | . 46 8 96 6 . 5 90 49 42 Melee . | . . . . . . . . . . Ram . | . . . . . . . . . . Kick . | . . . . . . . . . . Crush 1 | . . . 1 . . . . . . Escape Stasis . | . . . . . . . . . . Rewire 5 | . . . . . . 1 . 4 . Trap . | . . . . . . . . . . Miscellaneous . | . . . . . . . . . . Route ------- -11/Junkyard -10/Materials (discovered 4 exits: *Mat x3 / [*Min]) -10/Mines (discovered 2 exits: *Mat x2) -9/Materials (discovered 3 exits: *Mat / *Min x2) -9/Mines (discovered 2 exits: *Mat / *Exi) -9/Exiles -8/Mines (discovered 2 exits: *Mat x2) -8/Materials (discovered 5 exits: [*Fac x2] / *Sto x2 / Gar) -8/Garrison (discovered 3 exits: *Mat x3) -8/Materials History --------- Turn | Location | Event 11 | -11/Junkyard | Discovered new exit (range 15) 62 | -11/Junkyard | Entered Materials 301 | -10/Materials | Build established: Mutant 326 | -10/Materials | Discovered new exit (range 13) 511 | -10/Materials | Discovered new exit (range 9) 683 | -10/Materials | Discovered new exit (range 11) 1106 | -10/Materials | Discovered new exit (range 15) 1223 | -10/Materials | Entered Mines 1224 | -10/Mines | Assembled infested the area 1224 | -10/Mines | Learned location of Storage (-8) 1229 | -10/Mines | Assisted by a Guerilla fighting off Assembled 1887 | -10/Mines | Discovered new exit (range 15) 1987 | -10/Mines | Discovered new exit (range 8) 2002 | -10/Mines | Entered Materials 2002 | -9/Materials | Evolved 2 slots: Utility x2 2210 | -9/Materials | Discovered new exit (range 5) 2761 | -9/Materials | Discovered new exit (range 8) 2873 | -9/Materials | Repaired Imp. Treads 2996 | -9/Materials | Core integrity fell below 50% 3122 | -9/Materials | Repaired Imp. Assault Rifle 3296 | -9/Materials | Repaired Hrd. Light Armor Plating 3329 | -9/Materials | Repaired Imp. Treads 3382 | -9/Materials | Repaired Imp. Assault Rifle 3675 | -9/Materials | Discovered new exit (range 16) 4062 | -9/Materials | Entered Mines 4187 | -9/Mines | Learned Materials terminal intel 4253 | -9/Mines | Met a Derelict shopkeep closing up shop 4297 | -9/Mines | Discovered new exit (range 6) 4472 | -9/Mines | Deemed a non-threat by the Exiles lab entrance 4473 | -9/Mines | Discovered new exit (range 5) 4504 | -9/Mines | Entered Exiles 4543 | -9/Exiles | Met 8R-AWN 4570 | -9/Exiles | Met EX-HEX 4653 | -9/Exiles | Met EX-DEC 4681 | -9/Exiles | Visited The Gauntlet 4853 | -9/Exiles | Learned location of Zion (-6) 4964 | -9/Exiles | Discovered new exit (range 10) 4978 | -9/Exiles | Entered Mines 5142 | -8/Mines | Core integrity fell below 20% 5391 | -8/Mines | Discovered new exit (range 10) 5449 | -8/Mines | Discovered new exit (range 7) 5634 | -8/Mines | Entered Materials 5634 | -8/Materials | Evolved 2 slots: Propulsion x1, Utility x1 5635 | -8/Materials | Loaded intel: 12 terminal locations 5654 | -8/Materials | Discovered new exit (range 12) 6114 | -8/Materials | Destroyed 8 combat bots 6236 | -8/Materials | Identified exit to Storage 7368 | -8/Materials | Discovered new exit (range 13) 7404 | -8/Materials | Identified exit to Garrison 8041 | -8/Materials | Discovered new exit (range 16) 8353 | -8/Materials | Entered Garrison 8353 | -8/Garrison | Accompanied by 1 ally 8408 | -8/Garrison | Triggered checkpoint 8580 | -8/Garrison | Triggered checkpoint 8580 | -8/Garrison | Triggered checkpoint 8634 | -8/Garrison | Triggered checkpoint 8634 | -8/Garrison | Triggered checkpoint 8780 | -8/Garrison | Discovered new exit (range 11) 8814 | -8/Garrison | Triggered checkpoint 8885 | -8/Garrison | Core integrity fell below 50% 8901 | -8/Garrison | Garrison Relay disabled 9136 | -8/Garrison | Discovered new exit (range 8) 9224 | -8/Garrison | Triggered checkpoint 9396 | -8/Garrison | Triggered checkpoint 9422 | -8/Garrison | Garrison Relay disabled 9452 | -8/Garrison | Rescued a captive Derelict 9486 | -8/Garrison | Discovered new exit (range 14) 9524 | -8/Garrison | Triggered checkpoint 9572 | -8/Garrison | Triggered checkpoint 9604 | -8/Garrison | Core integrity fell below 20% 9628 | -8/Garrison | Lost 3 parts (1n2w) 9648 | -8/Garrison | Garrison Relay disabled 9728 | -8/Garrison | Entered Materials 9728 | -8/Materials | Accompanied by 2 allies 9778 | -8/Materials | Garrison activated, responded to threat 10128 | -8/Materials | First assault squad dispatched 10270 | -8/Materials | Destroyed by G-47 Trooper with Particle Gun Last Messages --------------- 10223_ I-25 Savior unfolds itself. 10224_ K-01 Serf collects debris. 10225_ Arm. Treads destroyed. 10227_ K-01 Serf collects debris. 10231_ Targeting Computer destroyed. 10236_ G-47 Trooper knocked back. 10242_ I-25 Savior knocked back. 10246_ Critical hit (Burn: +37). 10246_ Electrolysis Chamber disabled. 10249_ G-50 Soldier knocked back. 10250_ Imp. Deuterium Engine destroyed. 10252_ G-47 Trooper knocked back. 10252_ G-50 Soldier knocked back. 10257_ G-47 Trooper destroyed. 10263_ G-47 Trooper suffers critical hit (Blast). 10263_ G-47 Trooper knocked back. 10265_ Lgt. Treads destroyed. 10265_ Critical hit (Burn: +37). 10266_ G-47 Trooper destroyed. 10269_ Acquired 26 matter. Map ----- +----------------------------------------------------+ | ?????????????# + ! !!%!* % #? | | ?????????????# ! # ####+########## #? | | ?????????????# ### ##= ######## #? | | ?????????????# ???# # !??# = ### #? | | ?????????????# = ???# ##?????# #?# #? | | ?????????????########????# ##?????# "" #?# #? | | ?????????????????????????# #??????# T" #?# #? | | ????????????????????????## #??????# "" #?# #? | | ????????????????????????## #??????# #?# #? | | ??????????????????????####=#############+### ## | | ??????????????????????# * | | ??????????????????????+ [ | | ??????????????????????# ! | | ??????????????????????### #####+############# | | ????????????????????????# #?# ??????????? | | ????????????????????????# #?# #????????? | | ?????????????############+# #?# """ #????????? | | ?????????????# """ """ # #?# """ #????????? | | ?????????????# T """ """ # #?# """ #????????? | | ?????????????# """ " %# #?# #????????? | | ?????????????# # #?########????????? | | ?????????????#[ # #?????????????????? | | ??????????# ####+##+######h#?????????????????? | | ??????????# #?????????????????? | | ??????????# % ???????????? | | ??????????+ #######"#@########???????????????? | | ??????????# ??# " %%[ #????????????????????? | | ???????????????## g%""g#????????????????????? | | ????????????????#%% %""" #????????????????????? | | ????????????????# """i#????????????????????? | | ????????????????#! #????????????????????? | | ????????????????# """ #????????????????????? | | ????????????????# """ #????????????????????? | | ????????????????# "?? #????????????????????? | | ????????????????# ?? #????????????????????? | | ????????????????######??##????????????????????? | | ??????????????????????????????????????????????? | | ??????????????????????????????????????????????? | | ??????????????????????????????????????????????? | | | | | | | | | | | | | | | | | | | | | | | +----------------------------------------------------+ Best States ------------- Heat Dissipation 45 Energy Generation 16 Energy Capacity 290 Matter Stores 300 Matter Capacity 300 Sight Range 16 Robot Scan Range 14 Terrain Scan Density 10 Additional Mass Support 6 Armor Coverage 150 Evasion (%) 42 Targeting Accuracy 21 Core Analysis 6 Recoil Reduction 3 Item Schematics ----------------- Hvy. Ion Engine | -9/Materials | Scanalyzed Adv. Beam Cannon | -9/Materials | Scanalyzed Grenade Launcher | -9/Materials | Scanalyzed Huge Storage Unit | -8/Materials | Scanalyzed Adv. Treads | -8/Materials | Scanalyzed Adv. Assault Cannon | -8/Materials | Scanalyzed Imp. Deuterium Engine | -8/Materials | Scanalyzed Rocket Launcher | -8/Materials | Scanalyzed Robot Schematics ------------------ None Fabricated ------------ Nothing Alien Tech Used ----------------- None Achievements -------------- None Challenges ------------ None Game ------ Seed TerrainMetafiberCharger Manual? 0 Play Time 02:07:31 Cumulative 82.5 hours Start 2023.03.15 @ 00:29:33 End 2023.03.25 @ 22:38:25 Sessions 2 Manual Loads 0 Difficulty Rogue Special Mode None Game No. 63 Rogue 63 Adventurer 0 Explorer 0 Win Type - Total 0 Types 0/0/0/0/0/0/0/0/0 Lore% 47 Gallery% 45 Achievement% 35 Wizard Run 0 Options --------- ASCII 0 Keyboard 1 Movement Numpad Keybinds 0 Fullscreen 2 Font 18/SmallcapsGlow Map View 76x50 Tactical HUD 1 Map Filters NONE Filters NONE Steam 1 RUN: 144fd85e-de17-40f1-a984-08d00a8c2e45